Cogmind - Beta 9.6 @@@ ROGUE MODE // 2020.06.07 @ 02:13:11 Player: homogoblin Result: Destroyed by G-47 Trooper with Particle Gun Performance ------------- Evolutions (2) 1000 Regions Visited (5) 1000 Robots Destroyed (42) 210 Value Destroyed (1706) 1706 Prototype IDs (0) 0 Alien Tech Used (0) 0 Bonus (76) 76 TOTAL SCORE: 3992 Bonus ------- High Alert Combat Kills 44 Entered Garrisons 200 Friendly Fire -168 Cogmind --------- Core Integrity 0/550 Matter 293/450 Energy 85/100 System Corruption 0% Temperature Cool (47) Movement Core (200) Ox3 Location -8/Garrison Parts ------- > --- POWER (2) -------- (None) > --- PROPULSION (3) --- (None) > --- UTILITY (4) ------ Small Storage Unit Large Matter Pod Improved Signal Interpreter Utility Shielding > --- WEAPON (2) ------- Particle Gun > --- INVENTORY (6) ---- (None) Peak State ------------ > --- POWER ------------ Reinforced Ion Engine Light Nuclear Core > --- PROPULSION ------- Light Treads Light Treads Light Treads > --- UTILITY ---------- Small Storage Unit Improved Signal Interpreter Improved Terrain Scanner Utility Shielding > --- WEAPON ----------- Heavy Assault Rifle Shotgun > --- INVENTORY -------- Light Ion Engine Relay Coupler [NC] Relay Coupler [Swarmer] Relay Coupler [Grunt] Shotgun [Rating: 19] Favorites ----------- Power Ion Engine Engine Ion Engine Power Core Light Nuclear Core Propulsion Light Treads Treads Light Treads Leg Aluminum Leg Utility Small Storage Unit Device Improved Terrain Scanner Storage Small Storage Unit Processor Improved Signal Interpreter Protection Utility Shielding Weapon Shotgun Energy Gun Medium Laser Ballistic Gun Shotgun Build | -11 -10 -9 -9 -8 -8 ------- Run | Scr Mat Mat Min Mat Gar Slots Evolved 4 | . . 2 . 2 . Power 1 | . . 1 . . . Propulsion 1 | . . . . 1 . Utility 2 | . . 1 . 1 . Weapon . | . . . . . . Parts Attached 38 | 7 7 5 4 3 12 Power 9 | 1 1 1 1 1 4 Engine 6 | 1 1 1 1 1 1 Core 3 | . . . . . 3 Reactor . | . . . . . . Propulsion 9 | 2 2 . 2 1 2 Treads 7 | 2 . . 2 1 2 Leg 2 | . 2 . . . . Wheel . | . . . . . . Hover . | . . . . . . Flight . | . . . . . . Utility 9 | 1 2 3 . 1 2 Device 2 | . 1 1 . . . Storage 2 | 1 . . . . 1 Processor 1 | . . 1 . . . Hackware . | . . . . . . Protection 4 | . 1 1 . 1 1 Artifact . | . . . . . . Weapon 11 | 3 2 1 1 . 4 Energy Gun 2 | 1 . . . . 1 Energy Cannon . | . . . . . . Ballistic Gun 9 | 2 2 1 1 . 3 Ballistic Cannon . | . . . . . . Launcher . | . . . . . . Special Weapon . | . . . . . . Impact Weapon . | . . . . . . Slashing Weapon . | . . . . . . Piercing Weapon . | . . . . . . Special Melee Weapon . | . . . . . . Unidentified Prototypes . | . . . . . . Parts Lost 16 | . 1 . 1 . 14 Power 4 | . . . . . 4 Propulsion 5 | . . . . . 5 Utility 1 | . . . . . 1 Weapon 6 | . 1 . 1 . 4 Highest Loss Streak 6 | . 1 . 1 . 6 Average Slot Usage (%) 90 | . 96 100 99 97 82 Engine 13 | . 14 22 22 18 7 Core 3 | . . . . . 6 Treads 16 | . 18 . 8 27 20 Leg 6 | . 9 22 13 . . Device 5 | . 3 11 11 9 3 Storage 11 | . 14 11 11 9 10 Processor 7 | . . 7 11 9 9 Protection 7 | . 10 3 . 6 9 Energy Gun 1 | . 7 . . . . Ballistic Gun 17 | . 18 22 21 18 14 Naked Turns . | . . . . . . Heaviest Build 27 | 13 15 21 21 27 27 Greatest Support 60 | 40 40 20 40 60 60 Greatest Overweight (x) 6 | . . 1 1 . 6 Average Overweight (x) . | . . . . . . Largest Inventory Capacity 6 | 6 6 6 6 6 6 Average Capacity 5 | 5 6 6 6 6 6 Most Carried 6 | 4 6 5 6 4 6 Average Carried 3 | 2 4 3 4 2 3 Final Capacity 6 | 6 6 6 6 6 6 Final Carried 5 | 4 5 5 5 2 . Class Distribution -------------------- 50% | Mutant 49% | Scavenger-Mutant Dominant Class ---------------- Mutant | -10/Materials Mutant | -9/Materials Mutant | -9/Mines Scavenger-Mutant | -8/Materials Scavenger-Mutant | -8/Garrison Resources | -11 -10 -9 -9 -8 -8 ----------- Run | Scr Mat Mat Min Mat Gar Matter Collected 1333 | 223 131 58 313 . 608 Remotely . | . . . . . . Salvage Created 1464 | . 365 58 393 . 648 Parts 98 | . 25 3 30 . 40 Haulers Intercepted . | . . . . . . Recyclers Shooed 1 | . 1 . . . . Parts Field Recycled . | . . . . . . Retrieved Matter . | . . . . . . Parts Self-Destructed . | . . . . . . Prevented . | . . . . . . Kills | -11 -10 -9 -9 -8 -8 ------- Run | Scr Mat Mat Min Mat Gar Combat Hostiles Destroyed 35 | . 11 1 7 . 16 Melee 1 | . . . 1 . . Guns 33 | . 11 1 5 . 16 Classes Destroyed 8 | . 3 1 4 . . Worker 1 | . . . 1 . . Builder 1 | . . . 1 . . Tunneler 3 | . . . 3 . . Watcher 1 | . 1 . . . . Swarmer 6 | . 3 . . . 3 Grunt 25 | . 8 . 6 . 11 Brawler 1 | . . . 1 . . Sentry 3 | . . 1 . . 2 Thug 1 | . . . 1 . . Best Kill Streak 6 | . 3 1 6 . 4 Combat Bots Only 4 | . 3 1 4 . 4 Max Kills in Single Turn 2 | . 1 1 2 . 1 Gunslinging . | . . . . . . Exploded . | . . . . . . Melee 1 | . . . 1 . . Uniques/NPCs Destroyed . | . . . . . . Combat | -11 -10 -9 -9 -8 -8 -------- Run | Scr Mat Mat Min Mat Gar Damage Taken 3185 | . 808 73 217 . 2087 Core 778 | . 174 . 53 . 551 Absorbed by Shields 55 | . . . . . 55 Core Remaining (%) 72 | 100 30 . 86 . . Volleys Fired 158 | . 52 3 20 . 83 Largest 2 | . 2 2 2 . 2 Hottest 65 | . 50 43 46 . 65 Shots Fired 245 | . 62 6 38 . 139 Gun 245 | . 62 6 38 . 139 Cannon . | . . . . . . Launcher . | . . . . . . Special . | . . . . . . Kinetic 230 | . 48 6 38 . 138 Thermal 15 | . 14 . . . 1 Explosive . | . . . . . . Electromagnetic . | . . . . . . Robot Hit Streak 11 | . 11 4 4 . 9 Robot Miss Streak 14 | . 3 2 14 . 2 Penetration Max . | . . . . . . Secondary Targets 4 | . 1 . 1 . 2 Max Gunslinging Chain 1 | . 1 . 1 . 1 Shots Hit Robots 130 | . 42 4 16 . 68 Core Hits 85 | . 22 2 18 . 43 Critical Hits 1 | . . . . . 1 Critical Kills . | . . . . . . Critical Parts Destroyed 1 | . . . . . 1 Melee Attacks . | . . . . . . Impact . | . . . . . . Slashing . | . . . . . . Piercing . | . . . . . . Sneak Attacks . | . . . . . . Combat Hostiles . | . . . . . . Follow-up Attacks . | . . . . . . Damage Inflicted 2094 | . 559 56 436 . 1043 Guns 2091 | . 559 56 433 . 1043 Cannons . | . . . . . . Explosions . | . . . . . . Melee . | . . . . . . Ramming 3 | . . . 3 . . Kinetic 1939 | . 421 56 433 . 1029 Thermal 152 | . 138 . . . 14 Explosive . | . . . . . . Electromagnetic . | . . . . . . Impact . | . . . . . . Slashing . | . . . . . . Piercing . | . . . . . . Highest Corruption . | . . . . . . Average Corruption . | . . . . . . Corruption Purged . | . . . . . . Overload Shots . | . . . . . . Overflow Damage . | . . . . . . Projectiles . | . . . . . . Explosions . | . . . . . . Melee . | . . . . . . Knockbacks . | . . . . . . Impact . | . . . . . . Kinetic . | . . . . . . Secondary . | . . . . . . Self-Inflicted Damage . | . . . . . . Shots . | . . . . . . Rammed . | . . . . . . Targets Rammed 1 | . . . 1 . . Kicked . | . . . . . . Crushed 1 | . . . 1 . . Highest Temperature 183 | . 183 . 6 . 95 Average Temperature 46 | . 69 . 3 . 39 Received Heat Transfer 1521 | . 312 27 117 . 1065 Siege Activations . | . . . . . . Robots Corrupted . | . . . . . . Combat Hostiles . | . . . . . . Parts Fried . | . . . . . . Impact Corruptions . | . . . . . . Robots Melted . | . . . . . . Combat Hostiles . | . . . . . . Parts Melted . | . . . . . . Heat Transferred 444 | . 407 . . . 37 Parts Sabotaged . | . . . . . . Parts Stolen . | . . . . . . Parts Stripped . | . . . . . . Power Chain Reactions . | . . . . . . Missiles Intercepted . | . . . . . . Alert | -11 -10 -9 -9 -8 -8 ------- Run | Scr Mat Mat Min Mat Gar Peak Influence 580 | . 249 110 203 8 580 Average Influence 193 | . 105 64 84 8 324 Maximum Alert Level 2 | . 1 . 1 . 2 Low Security (%) 58 | 100 80 100 99 100 20 Level 1 26 | . 20 . . . 47 Level 2 15 | . . . . . 32 Level 3 . | . . . . . . Level 4 . | . . . . . . Level 5 . | . . . . . . High Security . | . . . . . . Max Security . | . . . . . . Squads Dispatched 3 | . 2 . 1 . . Investigation 1 | . 1 . . . . Extermination . | . . . . . . Reinforcement 1 | . 1 . . . . Assault 1 | . . . 1 . . Garrison . | . . . . . . Intercept . | . . . . . . Construction Impeded . | . . . . . . Haulers Reinforced . | . . . . . . Stealth | -11 -10 -9 -9 -8 -8 --------- Run | Scr Mat Mat Min Mat Gar Distress Signals 4 | . 2 . 2 . . Communications Jammed . | . . . . . . Distress Signals . | . . . . . . Times Spotted 52 | . 17 2 8 . 25 Peak Tracking Total 6 | . 4 2 3 . 6 Tactical Retreats 2 | . . . . . 2 Traps | -11 -10 -9 -9 -8 -8 ------- Run | Scr Mat Mat Min Mat Gar Traps Triggered 3 | . 1 . . . 2 Indirectly . | . . . . . . Trap Hack Attempts . | . . . . . . Triggered . | . . . . . . Disarmed 2 | . 2 . . . . Reprogrammed . | . . . . . . Reused . | . . . . . . Traps Extracted . | . . . . . . Installed . | . . . . . . Triggered . | . . . . . . Machines | -11 -10 -9 -9 -8 -8 ---------- Run | Scr Mat Mat Min Mat Gar Machines Disabled 2 | . . . . . 2 Max in Single Turn 1 | . . . . . 1 Garrison Relay 2 | . . . . . 2 Machines Sabotaged . | . . . . . . Garrisons Compromised . | . . . . . . Overloaded Fab Kills . | . . . . . . Fab Network Shutdowns . | . . . . . . Hacking | -11 -10 -9 -9 -8 -8 --------- Run | Scr Mat Mat Min Mat Gar Machines Accessed 5 | . 3 1 . 1 . Terminals 4 | . 3 1 . . . Fabricators . | . . . . . . Repair Stations . | . . . . . . Recycling Units . | . . . . . . Scanalyzers . | . . . . . . Garrison Access 1 | . . . . 1 . Total Hacks 17 | . 11 5 . 1 . Successful 8 | . 5 2 . 1 . Failed 9 | . 6 3 . . . Catastrophic . | . . . . . . Database Lockouts . | . . . . . . Manual . | . . . . . . Terminals 16 | . 11 5 . . . Fabricators . | . . . . . . Repair Stations . | . . . . . . Recycling Units . | . . . . . . Scanalyzers . | . . . . . . Garrison Access 1 | . . . . 1 . Terminal Hacks 7 | . 5 2 . . . Record 1 | . 1 . . . . Branch Access Points 1 | . 1 . . . . Locate Traps 2 | . 1 1 . . . Disarm Traps 1 | . 1 . . . . Hauler Manifests 1 | . 1 . . . . Zone Layout 1 | . . 1 . . . Fabricator Hacks . | . . . . . . Repair Station Hacks . | . . . . . . Recycling Unit Hacks . | . . . . . . Scanalyzer . | . . . . . . Garrison Access Hacks 1 | . . . . 1 . Unlock Access 1 | . . . . 1 . Unauthorized Hacks . | . . . . . . Terminals . | . . . . . . Fabricators . | . . . . . . Repair Stations . | . . . . . . Recycling Units . | . . . . . . Scanalyzers . | . . . . . . Garrison Access . | . . . . . . Data Cores Recovered . | . . . . . . Used . | . . . . . . Hacking Detections 4 | . 3 1 . . . Full Trace Events 3 | . 2 1 . . . Feedback Events . | . . . . . . Feedback Blocked . | . . . . . . Robot Schematics Acquired . | . . . . . . Robots Built . | . . . . . . Matter . | . . . . . . Time . | . . . . . . Total Robot Build Rating . | . . . . . . Part Schematics Acquired . | . . . . . . Parts Built . | . . . . . . Matter . | . . . . . . Time . | . . . . . . Total Part Build Rating . | . . . . . . Parts Repaired . | . . . . . . Time . | . . . . . . Parts Recycled . | . . . . . . Recycled Matter . | . . . . . . Retrieved Matter . | . . . . . . Retrieved Components . | . . . . . . Parts Scanalyzed . | . . . . . . Part Schematics Acquired . | . . . . . . Parts Damaged . | . . . . . . Bothacking | -11 -10 -9 -9 -8 -8 ------------ Run | Scr Mat Mat Min Mat Gar Used RIF Installer . | . . . . . . Robots Hacked . | . . . . . . Non-combat . | . . . . . . Combat . | . . . . . . Robot Hacks Applied . | . . . . . . Relay Couplers Released 7 | . . . . . 7 Machine Destruction 7 | . . . . . 7 Robots Rewired . | . . . . . . Allies Hacked . | . . . . . . Hacks Repelled . | . . . . . . Allies | -11 -10 -9 -9 -8 -8 -------- Run | Scr Mat Mat Min Mat Gar Total Allies 1 | . . . 1 . . Largest Group 1 | . . . 1 . . Highest-Rated Group 31 | . . . 31 . . Highest-Rated Ally 31 | . . . 31 . . Total Orders . | . . . . . . Ally Attacks 1 | . . . 1 . . Total Damage 20 | . . . 20 . . Kills . | . . . . . . Allies Corrupted . | . . . . . . Allies Melted . | . . . . . . Intel | -11 -10 -9 -9 -8 -8 ------- Run | Scr Mat Mat Min Mat Gar Robot Analysis Total . | . . . . . . Derelict Logs Recovered 1 | . . . 1 . . Drone Launches . | . . . . . . Drone Recoveries . | . . . . . . Exploration | -11 -10 -9 -9 -8 -8 ------------- Run | Scr Mat Mat Min Mat Gar Turns Passed 2112 | 98 445 124 429 42 974 Spaces Moved 1093 | 60 217 81 270 24 441 Core 22 | 13 . . . . 9 Treads 716 | 47 133 . 80 24 432 Legs 355 | . 84 81 190 . . Wheels . | . . . . . . Hover . | . . . . . . Flight . | . . . . . . Fastest Speed 50 | 50 120 120 120 160 160 Average Speed 147 | 136 144 128 133 160 162 Slowest Speed 350 | 160 160 150 160 160 350 Overloaded Moves . | . . . . . . Propulsion Burnouts . | . . . . . . Robots Hopped . | . . . . . . Cave-ins Triggered . | . . . . . . Exploration Rate (%) 29 | 4 46 12 67 5 45 Regions Visited 5 Branch Regions 1 Pre-discovered Areas . | . . . . . . Known Exits Taken 3 | . . 1 1 1 . Unknown Exits Taken 2 | 1 1 . . . . Scrap Searched 1 | . . . 1 . . Spaces Dug . | . . . . . . Terrain Destroyed . | . . . . . . Melee . | . . . . . . Projectile . | . . . . . . AOE . | . . . . . . Actions | -11 -10 -9 -9 -8 -8 --------- Run | Scr Mat Mat Min Mat Gar Total 1356 | 77 289 96 301 28 565 Wait 1 | . . . . . 1 Move 1087 | 59 216 80 269 24 439 Hop . | . . . . . . Pick Up 42 | 10 8 5 4 . 15 Fast Attach . | . . . . . . Attach 41 | 7 7 5 4 3 15 Detach 2 | 1 1 . . . . Swap . | . . . . . . Drop 18 | . 5 3 3 1 6 Fire 158 | . 52 3 20 . 83 Melee . | . . . . . . Ram . | . . . . . . Kick . | . . . . . . Crush 1 | . . . 1 . . Escape Stasis 6 | . . . . . 6 Rewire . | . . . . . . Trap . | . . . . . . Miscellaneous . | . . . . . . Route ------- -11/Scrapyard -10/Materials (discovered 2 exits: *Mat / Min) -9/Materials -9/Mines -8/Materials (discovered 2 exits: Fac / Gar) -8/Garrison (discovered 2 exits: *Mat x2) History --------- Turn | Location | Event 35 | -11/Scrapyard | Discovered new exit (range 16) 99 | -11/Scrapyard | Entered Materials 288 | -10/Materials | Identified exit to Mines 308 | -10/Materials | Build established: Mutant 406 | -10/Materials | Core integrity fell below 50% 506 | -10/Materials | Discovered new exit (range 15) 544 | -10/Materials | Entered another Materials area 544 | -9/Materials | Evolved 2 slots: Power x1, Utility x1 662 | -9/Materials | Discovered new exit (range 6) 667 | -9/Materials | Identified exit to Mines 668 | -9/Materials | Entered Mines 669 | -9/Mines | Met a Derelict testing a Signal Generator 780 | -9/Mines | Excavation squad dispatched 780 | -9/Mines | A large section of the Mines collapsed 973 | -9/Mines | Learned location of 1 exit from Materials 1030 | -9/Mines | Excavation squad dispatched 1069 | -9/Mines | Discovered new exit (range 4) 1083 | -9/Mines | Identified exit to Materials 1097 | -9/Mines | Entered Materials 1097 | -8/Materials | Evolved 2 slots: Propulsion x1, Utility x1 1098 | -8/Materials | Identified exit to Factory 1130 | -8/Materials | Identified exit to Garrison 1139 | -8/Materials | Entered Garrison 1164 | -8/Garrison | Triggered checkpoint 1181 | -8/Garrison | Garrison Relay disabled 1216 | -8/Garrison | Build established: Scavenger-Mutant 1326 | -8/Garrison | Triggered checkpoint 1344 | -8/Garrison | Triggered checkpoint 1424 | -8/Garrison | Triggered checkpoint 1604 | -8/Garrison | Discovered new exit (range 15) 1690 | -8/Garrison | Identified exit to Materials 1692 | -8/Garrison | Attempted to access garrison exit controls, blocked by remote lockdown 1768 | -8/Garrison | Triggered checkpoint 1838 | -8/Garrison | Lost 6 parts (1p2n1u2w) 1845 | -8/Garrison | Discovered exit to Materials (range 8) 1858 | -8/Garrison | Attempted to access garrison exit controls, blocked by remote lockdown 1891 | -8/Garrison | Core integrity fell below 50% 1960 | -8/Garrison | Triggered checkpoint 1960 | -8/Garrison | Garrison Relay disabled 2108 | -8/Garrison | Core integrity fell below 20% 2113 | -8/Garrison | Destroyed by G-47 Trooper with Particle Gun Last Messages --------------- Acquired 48 matter. Lgt. Treads destroyed. G-47 Trooper destroyed. ALERT: Garrison interior compromised. Hvy. Assault Rifle destroyed. Lgt. Treads destroyed. Acquired Hvy. Assault Rifle. Triggered Stasis Trap. A bubble of rippling energy engulfs the area. Field strength at 94. Field strength at 84. Field strength at 73. Field strength at 67. Hvy. Assault Rifle destroyed. Field strength at 39. Field strength at 21. Field strength at 15. Stasis field depleted. Imp. Ion Engine destroyed. Acquired Particle Gun. Map ----- +----------------------------------------------------+ | ???????????????????????# #?????????? | | ???????????????#???????# ########### #?#???????? | | ??????????????????????#"" "#????????# #?????????? | | ??????????????????????#######??#????## #?#?#####?? | | ???????????????? ?????????##?????????# #???# #?? | | ?????????????#???#?????????????#???### ##### ##? | | ????????????????????????#???#??????# #?? | | ?????????????????????????????#?????# #?? | | ??????????????????#????#???????????# ##########?? | | ??????????????????????????????#??#?# #????????#?? | | ???????????#??????#?????????????#??#^ ##??#?##???? | | ??????????#???#???#????#?##??????### ^#?#????????? | | ???????????????????#????#?##?#???#?# #???#?#????? | | ???????????????????##???????? ?????# #??????????? | | ??????????????# ##?????#? ????????# #?#???????#? | | ??????????????# ########? #????#??# #?????#????? | | ??????????????# ## #??????#????# #???##?????? | | ?????????????## ## ######??#???# #??#??#????? | | ?????? ???#### ########[ #??#?????#?? | | ??????????? % = * = #??#???#??#? | | ??????????? %=[ #??????????? | | ?????????????# ## ## = ###########??????????# | | ?????????????# g ## ##%=%####??#??#?#?????????? | | ?????? ??????" g [^= = #??????????#???????# | | ?????????#???" =^!= #?????#?#??????????? | | ?????????????" !* @ #??????#???????????? | | ??????????#??" * #??#??????????#????? | | ?????????????# ## ## ###????????#?????????? | | ???########### ##g ## #????#???????????????? | | ???# Y #?????????#??????????? | | ???# !* # ?? ??? ????????????? | | ???# ######## ==% #?????#??????????????? | | ???# #??????######% = ## #???#??#???? ????????? | | ???# #???????????#=*% ## #????????????????????? | | ???# #???????????####### #????????#???????????? | | #### #?????????????????# #?#???#??????????????? | | #?????????????????# #??????????????#?????# | | #?????????????????# ########?? ??????????# | | ### ###??????????#??????#^^ #?????????????# | | ??# #?????????#?????????# ^ ###### #????#????????# | | ### #???????????????????# #??#?# #?????####?#??# | | ## #?????????#?????????# ##???# ##???#??#?????# | | ### #???????????????????# ###### ############### | | #???????????????????# [ | | ### #???????????????????# ! | | ## #???????????????????# [ | | ## #???????????????????########## ############### | | ## #?????????????????#?#????????# ##????????????# | | ### #??????????????????#?????????# #?#???????????? | | # +????????#######?????????#???# ######??#?????? | +----------------------------------------------------+ Best States ------------- Heat Dissipation 31 Energy Generation 23 Energy Capacity 415 Matter Stores 306 Matter Capacity 450 Sight Range 16 Terrain Scan Range 16 Terrain Scan Density 10 Armor Coverage 150 Power Shielding 33 Utility Shielding 33 Evasion (%) 50 Recoil Reduction 3 Item Schematics ----------------- None Robot Schematics ------------------ None Fabricated ------------ Nothing Alien Tech Used ----------------- None Achievements -------------- Backstab Shopping List Challenges ------------ None Game ------ Seed LatentOverloadTrap Manual? 0 Play Time 00:25:44 Cumulative 2.6 hours Start 2020.06.07 @ 01:42:08 End 2020.06.07 @ 02:13:11 Sessions 1 Manual Loads 0 Difficulty Rogue Special Mode None Game No. 5 Rogue 1 Adventurer 3 Explorer 1 Win Type - Total 0 Types 0/0/0/0/0/0/0 Lore% 1 Gallery% 6 Achievement% 6 Wizard Run 0 Options --------- ASCII 0 Keyboard 0 Movement Mouse Keybinds 0 Fullscreen 1 Font 18/SmallcapsGlow Map View 76x50 Tactical HUD 0 Map Filters NONE Filters NONE Steam 1 RUN: 9d66d638-5392-43db-aad0-bd2349c645db